bitfinex/quotes_SOLUSD_20250422
["timestamp","ask_amount","ask_price","bid_price","bid_amount"]
[1745355408081,0.03,144.33,144.32,12.87490193]
[1745355409171,0.03,144.33,144.31,14.49570193]
[1745355410194,0.03,144.33,144.31,1.6208]
[1745355410392,0.03,144.33,144.3,38.87490193]
[1745355411191,0.03,144.33,144.3,26.0]
[1745355411394,12.90490193,144.33,144.28,27.6208]
[1745355411580,12.90490193,144.33,144.29,12.87490193]
[1745355412270,0.03,144.33,144.29,12.87490193]
[1745355412970,0.03,144.33,144.3,12.87490193]
[1745355419003,0.03,144.37,144.32,133.45700965]
[1745355419203,0.03,144.39,144.36,38.87490193]
[1745355419512,0.03,144.4,144.38,40.39740193]
[1745355419684,0.03,144.4,144.39,12.87490193]
[1745355429915,0.03,144.4,144.38,120.87490193]
[1745355430481,0.03,144.4,144.39,12.87490193]
[1745355430995,0.03,144.4,144.39,54.43490193]
[1745355431199,0.03,144.4,144.39,12.87490193]
[1745355438325,0.03,144.4,144.38,108.0]
[1745355438507,0.03,144.4,144.39,12.87490193]
[1745355438817,0.03,144.4,144.37,12.87490193]
[1745355440519,0.03,144.4,144.36,38.87490193]
[1745355441693,12.87490193,144.39,144.36,26.0]
[1745355441920,12.90490193,144.4,144.36,26.0]
[1745355442221,0.03,144.4,144.36,26.0]
[1745355442517,12.90490193,144.4,144.36,26.0]
[1745355442704,6.92568737,144.39,144.35,12.87490193]
[1745355443804,12.87490193,144.38,144.34,38.87490193]
[1745355444002,12.87490193,144.38,144.33,12.87490193]
[1745355444210,12.87490193,144.36,144.32,0.063]
[1745355445413,12.87490193,144.35,144.32,0.063]
[1745355445913,12.87490193,144.36,144.32,0.063]
[1745355446095,6.92664681,144.37,144.33,12.87490193]
[1745355446415,19.16140193,144.38,144.34,12.87490193]
[1745355446593,6.92600725,144.39,144.36,12.87490193]
[1745355447519,6.95535944,144.4,144.36,12.87490193]
[1745355447695,0.03,144.4,144.37,12.87490193]
[1745355448023,0.03,144.4,144.36,12.87490193]
[1745355448200,12.90490193,144.4,144.35,12.87490193]
[1745355449402,12.87490193,144.39,144.35,12.87490193]
[1745355450344,6.92616705,144.38,144.33,108.0]
[1745355450618,6.92616705,144.38,144.34,12.87490193]
[1745355451923,19.80073544,144.39,144.35,12.87490193]
[1745355452115,6.92583351,144.39,144.35,12.87490193]
[1745355457930,6.92583351,144.39,144.33,108.0]
[1745355458124,6.92583351,144.39,144.35,12.87490193]
[1745355459631,6.92583351,144.39,144.33,108.0]
[1745355459838,6.92583351,144.39,144.35,12.87490193]
[1745355460322,19.80073544,144.39,144.33,108.0]
[1745355460505,19.80073544,144.39,144.34,12.87490193]
[1745355464018,19.80073544,144.39,144.33,108.0]
[1745355464521,19.80073544,144.39,144.34,12.87490193]
[1745355465526,6.95520775,144.4,144.34,12.87490193]
[1745355465833,12.87490193,144.39,144.34,12.87490193]
[1745355466203,12.87490193,144.39,144.35,13.9]
[1745355466404,0.03,144.4,144.38,38.87490193]
[1745355466727,0.03,144.4,144.39,12.87490193]
[1745355471637,0.03,144.4,144.38,108.0]
[1745355471840,0.03,144.4,144.39,12.87490193]
[1745355472134,0.03,144.4,144.39,94.87490193]
[1745355475442,0.03,144.4,144.39,82.0]
[1745355475635,0.03,144.4,144.39,108.77490193]
[1745355476969,0.03,144.4,144.39,95.9]
[1745355477171,0.03,144.4,144.39,108.77490193]
[1745355477355,0.03,144.4,144.39,94.87490193]
[1745355477556,0.03,144.4,144.39,108.77490193]
[1745355478062,0.03,144.4,144.39,26.77490193]
[1745355479980,0.03,144.4,144.38,26.0]
[1745355480148,0.03,144.4,144.39,12.87490193]
[1745355481971,0.03,144.4,144.37,39.9]
[1745355482162,0.03,144.4,144.39,12.87490193]
[1745355489074,0.03,144.4,144.37,39.9]
[1745355489283,0.03,144.4,144.39,12.87490193]
[1745355490283,0.03,144.4,144.37,39.9]
[1745355490468,0.03,144.4,144.39,12.87490193]
[1745355495286,0.03,144.4,144.39,2.87490193]
[1745355495467,0.03,144.4,144.37,39.9]
[1745355495876,0.03,144.4,144.39,12.87490193]
[1745355496685,0.03,144.4,144.37,39.9]
[1745355496874,0.03,144.4,144.39,12.87490193]
[1745355502906,0.03,144.4,144.39,14.53970193]
[1745355503080,0.03,144.42,144.41,26.0]
[1745355503279,0.03,144.42,144.41,172.37450965]
[1745355504165,0.03,144.43,144.41,213.93450965]
[1745355504377,0.03,144.43,144.42,68.33490193]
[1745355504997,0.03,144.43,144.42,70.88929272]
[1745355505295,0.03,144.43,144.42,152.88929272]
[1745355506492,0.03,144.43,144.42,111.32929272]
[1745355507476,0.03,144.43,144.42,108.77490193]
[1745355508194,0.03,144.43,144.42,114.42348168]
[1745355510499,0.03,144.43,144.42,116.98071134]
[1745355511998,0.03,144.43,144.42,111.33213159]
[1745355518419,0.03,144.43,144.42,97.43213159]
[1745355518743,0.03,144.43,144.42,111.31213159]
[1745355519924,0.03,144.49,144.43,18.64964886]
[1745355520219,0.03,144.49,144.47,26.0]
[1745355520426,0.03,144.49,144.47,134.75490193]
[1745355520911,0.03,144.49,144.47,186.25450965]
[1745355521229,0.03,144.49,144.47,246.46415851]
[1745355522313,0.03,144.49,144.48,60.20964886]
[1745355522623,17.29054532,144.59,144.48,60.20964886]
[1745355522624,0.03,144.6,144.55,41.56]
[1745355522814,0.03,144.6,144.59,12.87490193]
[1745355528711,0.03,144.6,144.59,155.08455079]
[1745355528910,1.5605,144.67,144.62,26.0]
[1745355529137,6.91210378,144.68,144.66,12.87490193]
[1745355529318,6.018,144.69,144.66,12.87490193]
[1745355529319,12.929476,144.69,144.66,12.87490193]
[1745355529525,12.929476,144.69,144.62,159.49960772]
[1745355529837,12.87490193,144.68,144.62,108.0]
[1745355530021,12.929476,144.69,144.65,12.87490193]
[1745355530223,12.929476,144.69,144.66,12.87490193]
[1745355530618,12.929476,144.69,144.62,108.0]
[1745355530937,12.929476,144.69,144.65,12.87490193]
[1745355531936,12.929476,144.69,144.66,12.87490193]
[1745355533823,12.929476,144.69,144.62,159.49960772]
[1745355533824,12.929476,144.69,144.65,12.87490193]
[1745355534023,12.929476,144.69,144.62,108.0]
[1745355534226,12.929476,144.69,144.65,12.87490193]
[1745355536741,12.929476,144.69,144.66,12.87490193]
[1745355537444,6.911476,144.69,144.67,12.87490193]
[1745355538767,6.95317049,144.7,144.67,12.87490193]
[1745355539916,6.95317049,144.7,144.68,12.87490193]
[1745355540318,6.95317049,144.7,144.67,12.87490193]
[1745355547053,0.042257,144.7,144.68,12.87490193]
[1745355547424,0.042257,144.7,144.69,12.87490193]
[1745355549339,0.042257,144.7,144.65,83.5265]
[1745355549539,12.91715893,144.7,144.65,96.40140193]
[1745355549726,0.042257,144.7,144.65,96.40140193]
[1745355549927,0.042257,144.7,144.68,12.87490193]
[1745355550134,0.042257,144.7,144.65,83.5265]
[1745355550346,0.042257,144.7,144.68,12.87490193]
[1745355552551,0.042257,144.7,144.66,12.87490193]
[1745355552762,6.95310703,144.7,144.66,12.87490193]
[1745355553255,6.95310703,144.7,144.67,12.87490193]
[1745355553652,0.042257,144.7,144.68,12.87490193]
[1745355553865,0.042257,144.7,144.67,12.87490193]
[1745355554055,0.042257,144.7,144.66,12.87490193]
[1745355554440,12.91715893,144.7,144.66,12.87490193]
[1745355554962,0.042257,144.7,144.66,12.87490193]
[1745355555858,12.87490193,144.69,144.65,82.0]
[1745355556067,12.87490193,144.69,144.64,12.87490193]
[1745355557067,6.91180536,144.68,144.64,12.87490193]
[1745355557262,6.91180536,144.68,144.65,12.87490193]
[1745355558268,6.91132766,144.69,144.65,12.87490193]
[1745355559149,19.78622959,144.69,144.64,12.87490193]
[1745355560461,12.87490193,144.67,144.62,83.5032]
[1745355560643,12.87490193,144.67,144.63,12.87490193]
[1745355562048,12.87490193,144.67,144.62,96.37810193]
[1745355562766,6.91276095,144.66,144.62,96.37810193]
[1745355563670,19.78766288,144.66,144.61,12.87490193]
[1745355564566,12.87490193,144.63,144.58,1.5032]
[1745355564875,6.91515109,144.61,144.58,12.87490193]
[1745355565058,6.91515109,144.61,144.55,83.5032]
[1745355565059,19.79005302,144.61,144.55,83.5032]
[1745355565261,12.87490193,144.6,144.55,96.37810193]
[1745355565564,12.87490193,144.6,144.55,94.87490193]
[1745355565942,6.91515109,144.61,144.55,94.87490193]
[1745355565943,37.07793076,144.61,144.56,12.87490193]
[1745355567865,19.79005302,144.61,144.56,12.87490193]
[1745355570068,19.79005302,144.61,144.55,82.0]
[1745355570368,19.79100954,144.59,144.55,26.0]
[1745355570949,12.87490193,144.57,144.54,0.063]
[1745355571153,12.87490193,144.56,144.54,0.063]
[1745355571366,12.87490193,144.55,144.54,0.063]
[1745355572372,19.79292337,144.55,144.54,0.063]
[1745355573860,6.91802144,144.55,144.54,0.063]
[1745355575961,19.79292337,144.55,144.54,0.063]
[1745355576168,38.44257223,144.55,144.54,0.063]
[1745355576775,91.53807995,144.55,144.54,1e-08]
[1745355577582,97.94607995,144.55,144.54,1e-08]
[1745355579673,18.64964886,144.54,144.49,0.063]
[1745355579879,12.87490193,144.5,144.49,0.063]
[1745355580053,38.44496601,144.5,144.49,0.063]
[1745355580253,44.85296601,144.5,144.49,1e-08]
[1745355580577,18.64964886,144.49,144.48,1e-08]
[1745355580783,83.02415851,144.49,144.48,1e-08]
[1745355581281,58.88698424,144.49,144.48,1e-08]
[1745355582284,65.80787841,144.49,144.48,1e-08]
[1745355582971,91.80787841,144.49,144.48,1e-08]
[1745355585278,71.68921072,144.49,144.48,1e-08]
[1745355585457,86.14921072,144.49,144.48,1e-08]
[1745355592076,6.92056595,144.5,144.48,1e-08]
[1745355592377,27.03923364,144.5,144.48,1e-08]
[1745355594503,20.11866769,144.5,144.48,1e-08]
[1745355594789,27.03874255,144.51,144.48,1e-08]
[1745355595189,20.11866769,144.49,144.48,1e-08]
[1745355595495,27.03956186,144.49,144.48,1e-08]
[1745355596167,20.11866769,144.5,144.48,1e-08]
[1745355596808,20.11866769,144.49,144.48,1e-08]
[1745355597988,27.03956186,144.49,144.48,1e-08]
[1745355601276,19.78715699,144.49,144.48,1e-08]
[1745355602187,0.03,144.55,144.48,14.41776283]
[1745355602387,6.94823108,144.55,144.48,1.55150001]
[1745355602575,19.8144939,144.55,144.51,12.86626282]
[1745355602973,19.8144939,144.55,144.5,12.86626282]
[1745355603380,12.86626282,144.54,144.5,12.86626282]
[1745355604596,12.86626282,144.52,144.48,1.55150001]
[1745355606376,19.78607285,144.52,144.48,1.55150001]
[1745355606773,12.86626282,144.49,144.48,1e-08]
[1745355606977,31.51591168,144.49,144.48,1e-08]
[1745355607180,97.32096296,144.49,144.48,1e-08]
[1745355607385,73.2256024,144.49,144.48,1e-08]
[1745355608204,80.14649657,144.49,144.48,1e-08]
[1745355613592,26.0,144.46,144.45,0.063]
[1745355613775,26.0,144.46,144.4,0.063]
[1745355613776,38.76762563,144.43,144.4,0.063]
[1745355613979,84.8856024,144.43,144.4,0.063]
[1745355614180,40.23595354,144.41,144.4,0.063]
[1745355615493,44.64964886,144.4,144.39,0.063]
[1745355615699,71.69283338,144.4,144.39,0.063]
[1745355615900,71.69283338,144.4,144.39,1e-08]
[1745355620003,89.00585277,144.4,144.36,0.063]
[1745355620303,45.69427244,144.37,144.36,0.063]
[1745355623707,71.69427244,144.37,144.36,1e-08]
[1745355628904,18.64964886,144.36,144.33,0.063]
[1745355629103,40.23595354,144.34,144.33,0.063]
[1745355630117,20.11797677,144.34,144.33,0.063]
[1745355630612,27.04606323,144.34,144.33,0.063]
[1745355638023,6.92808646,144.34,144.33,0.063]
[1745355638325,45.69571209,144.34,144.33,0.063]
[1745355641418,38.47214363,144.34,144.33,0.063]
[1745355642231,25.57773532,144.34,144.33,0.063]
[1745355642527,38.47214363,144.34,144.33,0.063]
[1745355651129,19.82249477,144.34,144.33,0.063]
[1745355651317,6.92782942,144.35,144.33,0.063]
[1745355651722,14.4,144.41,144.34,14.55900831]
[1745355651920,12.89440831,144.39,144.34,14.55900831]
[1745355653434,6.92616705,144.38,144.34,14.55900831]
[1745355653624,16.3843944,144.39,144.34,14.55900831]
[1745355659036,25.57485661,144.4,144.34,14.55900831]
[1745355659543,12.89440831,144.38,144.34,14.55900831]
[1745355661442,25.57485661,144.4,144.34,14.55900831]
[1745355661613,12.89440831,144.38,144.34,14.55900831]
[1745355661938,19.82057594,144.38,144.34,14.55900831]
[1745355662931,12.89440831,144.38,144.34,14.55900831]
[1745355663139,6.92588306,144.39,144.34,14.55900831]
[1745355663332,19.82029137,144.39,144.34,14.55900831]
[1745355669739,6.92588306,144.39,144.34,14.55900831]
[1745355669943,19.82029137,144.39,144.34,14.55900831]
[1745355670238,19.82029137,144.39,144.35,12.89440831]
[1745355670637,19.82029137,144.39,144.34,14.55900831]
[1745355670815,12.89440831,144.38,144.34,14.55900831]
[1745355671943,19.82029137,144.39,144.34,14.55900831]
[1745355674945,19.82029137,144.39,144.35,12.89440831]
[1745355675948,19.81913651,144.41,144.36,12.89440831]
[1745355676447,12.89440831,144.4,144.34,1.6646]
[1745355676626,19.82031301,144.39,144.34,1.6646]
[1745355676830,19.82031301,144.39,144.35,12.89440831]
[1745355678520,12.89440831,144.4,144.35,12.89440831]
[1745355680838,6.9247282,144.41,144.35,12.89440831]
[1745355681046,12.89440831,144.4,144.36,12.89440831]
[1745355682639,6.9247282,144.41,144.36,12.89440831]
[1745355682839,12.89440831,144.4,144.36,12.89440831]
[1745355683343,19.81967165,144.4,144.36,12.89440831]
[1745355683746,6.92526334,144.4,144.36,12.89440831]
[1745355685251,25.57437706,144.41,144.36,12.89440831]
[1745355685457,38.46878537,144.41,144.36,12.89440831]
[1745355686756,12.89440831,144.4,144.35,12.89440831]
[1745355688054,12.89440831,144.4,144.35,12.79440831]
[1745355688870,12.89440831,144.39,144.34,14.55900831]
[1745355691855,12.89440831,144.35,144.33,0.063]
[1745355692034,83.12169041,144.34,144.33,0.063]
[1745355694362,90.04977687,144.34,144.33,0.063]
[1745355696166,38.47214363,144.34,144.33,0.063]
[1745355696842,90.04977687,144.34,144.33,0.063]
[1745355705453,18.64964886,144.32,144.29,0.063]
[1745355705650,27.03440831,144.31,144.29,0.063]
[1745355706969,33.96393502,144.31,144.29,0.063]
[1745355712891,78.61358388,144.31,144.29,0.063]
[1745355715178,18.64964886,144.3,144.29,0.063]
[1745355715383,31.54405717,144.3,144.29,0.063]
[1745355717186,31.54405717,144.3,144.28,0.063]
[1745355717388,25.58013607,144.29,144.28,0.063]
[1745355717696,44.64964886,144.28,144.27,0.063]
[1745355717901,83.12169041,144.27,144.25,0.063]
[1745355718278,14.02,144.26,144.25,0.063]
[1745355720492,20.95192846,144.26,144.25,0.063]
[1745355721391,33.84633677,144.26,144.25,0.063]
[1745355721576,39.60157732,144.26,144.25,0.063]
[1745355721770,52.49598563,144.26,144.25,0.063]
[1745355722173,38.47598563,144.26,144.25,0.063]
[1745355723921,6.92856647,144.33,144.26,1.6662]
[1745355724074,12.89440831,144.31,144.26,14.56060831]
[1745355725807,19.82435734,144.31,144.26,14.56060831]
[1745355727196,12.89440831,144.28,144.26,1.6662]
[1745355727379,12.89440831,144.27,144.26,1.6662]
[1745355728700,19.82585628,144.27,144.26,1.6662]
[1745355728997,19.82585628,144.27,144.25,0.063]
[1745355729201,31.54405717,144.26,144.25,0.063]
[1745355731701,38.47598563,144.26,144.25,0.063]
[1745355738115,6.93192846,144.26,144.25,0.063]
[1745355739621,19.82633677,144.26,144.25,0.063]
[1745355740619,6.93192846,144.26,144.25,0.063]
[1745355740824,19.82633677,144.26,144.25,0.063]
[1745355741622,6.93096756,144.28,144.25,0.063]
[1745355741818,19.82537587,144.28,144.25,0.063]
[1745355742323,38.47475085,144.29,144.25,0.063]
[1745355742613,26.0,144.3,144.25,12.95740831]
[1745355742614,12.89440831,144.3,144.25,12.95740831]
[1745355743116,33.84393502,144.31,144.26,12.89440831]
[1745355743298,12.89440831,144.3,144.25,12.95740831]
[1745355743937,12.89440831,144.3,144.26,12.89440831]
[1745355744622,19.82454765,144.3,144.26,12.89440831]
[1745355746729,26.91440831,144.31,144.26,12.89440831]
[1745355746901,33.84411737,144.31,144.26,12.89440831]
[1745355747221,38.53624345,144.32,144.27,14.55080831]
[1745355748318,12.89440831,144.31,144.27,1.6564]
[1745355748726,19.82430501,144.31,144.27,1.6564]
[1745355751006,12.89440831,144.3,144.27,1.6564]
[1745355753134,6.9298967,144.31,144.27,1.6564]
[1745355753324,19.82430501,144.31,144.27,1.6564]
[1745355760835,12.89440831,144.29,144.25,0.063]
[1745355761136,12.89440831,144.28,144.25,0.063]
[1745355761338,12.89440831,144.29,144.25,26.063]
[1745355762240,19.82522809,144.29,144.25,26.063]
[1745355763240,6.93081978,144.29,144.25,26.063]
[1745355763443,38.47420452,144.3,144.25,38.95740831]
[1745355764441,0.063,144.32,144.27,12.89440831]
[1745355764745,12.95740831,144.32,144.27,12.89440831]
[1745355765646,19.88664447,144.32,144.27,12.89440831]
[1745355770845,0.063,144.32,144.27,12.89440831]
[1745355771049,0.063,144.32,144.3,12.89440831]
[1745355780763,12.89440831,144.31,144.28,27.5731]
[1745355781259,12.89440831,144.31,144.28,26.0]
[1745355782458,6.93000693,144.3,144.28,26.0]
[1745355782656,6.93000693,144.3,144.26,12.89440831]
[1745355782858,6.93000693,144.3,144.26,38.89440831]
[1745355784259,6.93000693,144.3,144.25,82.063]
[1745355784260,12.89440831,144.29,144.25,82.063]
[1745355784448,12.89440831,144.28,144.25,82.063]
[1745355785559,6.93000693,144.3,144.25,82.063]
[1745355785762,12.89440831,144.29,144.25,82.063]
[1745355786369,19.82535556,144.29,144.25,82.063]
[1745355786658,12.89440831,144.31,144.26,12.89440831]
[1745355786837,12.89440831,144.31,144.27,12.89440831]
[1745355786838,6.92970137,144.31,144.27,12.89440831]
[1745355787663,12.89440831,144.3,144.25,94.95740831]
[1745355788566,19.82460016,144.3,144.25,94.95740831]
[1745355789562,6.93019185,144.3,144.26,12.89440831]
[1745355789743,12.89440831,144.29,144.25,82.063]
[1745355789942,12.89440831,144.26,144.25,0.063]
[1745355791746,19.82633677,144.26,144.25,0.063]
[1745355793647,24.25881623,144.28,144.25,0.063]
[1745355793849,12.89440831,144.26,144.25,0.063]
[1745355796677,19.82633677,144.26,144.25,0.063]
[1745355798473,24.25881623,144.28,144.25,0.063]
[1745355798658,12.89440831,144.26,144.25,0.063]
[1745355799870,19.82633677,144.26,144.25,0.063]
[1745355805378,6.93192846,144.26,144.25,0.063]
[1745355806082,19.82633677,144.26,144.25,0.063]
[1745355813882,24.25881623,144.28,144.25,0.063]
[1745355814076,12.89440831,144.26,144.25,0.063]
[1745355817891,19.82633677,144.26,144.25,0.063]
[1745355832614,6.93192846,144.26,144.25,0.063]
[1745355838209,12.89440831,144.26,144.25,0.063]
[1745355839711,31.54405717,144.26,144.25,0.063]
[1745355840512,38.47598563,144.26,144.25,0.063]
[1745355843913,19.82633677,144.26,144.25,0.063]
[1745355844898,6.93192846,144.26,144.25,0.063]
[1745355845702,19.82633677,144.26,144.25,0.063]
[1745355855428,38.47598563,144.26,144.25,0.063]
[1745355859137,6.93192846,144.26,144.25,0.063]
[1745355866334,19.82633677,144.26,144.25,0.063]
[1745355868732,38.47598563,144.26,144.25,0.063]
[1745355871441,6.93192846,144.26,144.25,0.063]
[1745355884546,19.82633677,144.26,144.25,0.063]
[1745355884757,38.47598563,144.26,144.25,0.063]
[1745355910878,25.58157732,144.26,144.25,0.063]
[1745355911260,38.47598563,144.26,144.25,0.063]
[1745355915492,25.58157732,144.26,144.25,0.063]
[1745355915692,34.65152895,144.3,144.25,0.063]
[1745355915693,18.64964886,144.29,144.25,0.063]
[1745355916192,12.89440831,144.28,144.25,0.063]
[1745355916379,6.92952671,144.31,144.25,12.95740831]
[1745355916570,12.89440831,144.29,144.25,12.95740831]
[1745355917194,18.64964886,144.3,144.25,12.95740831]
[1745355917384,12.89440831,144.29,144.25,12.95740831]
[1745355918001,19.82499978,144.29,144.25,0.063]
[1745355918880,12.89440831,144.28,144.25,0.063]
[1745355919594,6.93059147,144.29,144.25,0.063]
[1745355919798,12.89440831,144.28,144.25,0.063]
[1745355920200,6.93059147,144.29,144.25,0.063]
[1745355920375,12.89440831,144.28,144.25,0.063]
[1745355921188,6.93059147,144.29,144.25,0.063]
[1745355921495,12.89440831,144.28,144.25,0.063]
[1745355922275,6.93059147,144.29,144.25,0.063]
[1745355922475,12.89440831,144.28,144.25,0.063]
[1745355924704,19.82580123,144.28,144.25,0.063]
[1745355926788,6.93139292,144.28,144.25,0.063]
[1745355927099,6.93139292,144.28,144.25,12.95740831]
[1745355927301,6.93139292,144.28,144.25,0.063]
[1745355927595,6.93139292,144.28,144.25,12.95740831]
[1745355927787,6.93058989,144.29,144.25,12.95740831]
[1745355935108,12.89440831,144.29,144.25,12.95740831]
[1745355936808,24.25432073,144.31,144.25,0.063]
[1745355937004,12.89440831,144.28,144.25,0.063]
[1745355937312,12.89440831,144.27,144.25,0.063]
[1745355937517,12.89440831,144.28,144.25,0.063]
[1745355937807,12.89440831,144.29,144.25,0.063]
[1745355939005,6.93096756,144.28,144.25,0.063]
[1745355942811,19.82537587,144.28,144.25,0.063]
[1745355945106,18.64964886,144.3,144.25,0.063]
[1745355945407,19.82457411,144.3,144.25,12.95740831]
[1745355945590,12.89440831,144.29,144.25,12.95740831]
[1745355945913,12.89440831,144.29,144.25,0.063]
[1745355946793,19.82516653,144.29,144.25,0.063]
[1745355947413,12.89440831,144.28,144.25,0.063]
[1745355949095,19.82516653,144.29,144.25,0.063]
[1745355950816,12.89440831,144.29,144.25,12.95740831]
[1745355951519,19.82506361,144.29,144.25,0.063]
[1745355952622,6.9306553,144.29,144.25,12.95740831]
[1745355953619,6.9306553,144.29,144.25,0.063]
[1745355953620,19.82506361,144.29,144.25,0.063]
[1745355955115,0.063,144.32,144.26,12.89440831]
[1745355955318,0.063,144.32,144.28,12.89440831]
[1745355955514,19.88650496,144.32,144.27,38.89440831]
[1745355955818,12.89440831,144.31,144.27,38.89440831]
[1745355955997,12.89440831,144.31,144.27,12.89440831]
[1745355958600,19.8240984,144.31,144.26,26.0]
[1745355958816,12.89440831,144.3,144.26,26.0]
[1745355959721,19.82444523,144.3,144.26,26.0]
[1745355960307,19.82444523,144.3,144.26,38.89440831]
[1745355960499,6.93003692,144.3,144.26,38.89440831]
[1745355960811,19.88655515,144.32,144.28,12.89440831]
[1745355961007,19.88655515,144.32,144.27,12.89440831]
[1745355964923,19.88655515,144.32,144.27,38.89440831]
[1745355965429,12.89440831,144.31,144.27,38.89440831]
[1745355966422,12.95740831,144.32,144.27,38.89440831]
[1745355966635,12.95740831,144.32,144.28,12.89440831]
[1745355970828,0.063,144.32,144.28,12.89440831]
[1745355971704,12.95740831,144.32,144.28,12.89440831]
[1745355974323,0.063,144.32,144.29,12.89440831]
[1745355975628,0.063,144.32,144.3,38.89440831]
[1745355975805,0.063,144.32,144.28,38.89440831]
[1745355976210,0.063,144.32,144.29,12.89440831]
[1745355976524,0.063,144.32,144.3,12.89440831]
[1745355976906,0.063,144.32,144.29,12.89440831]
[1745355978336,0.063,144.32,144.31,12.89440831]
[1745355978520,0.063,144.32,144.3,38.89440831]
[1745355979723,0.063,144.32,144.3,26.0]
[1745355980437,0.063,144.32,144.3,38.89440831]
[1745355986528,0.063,144.32,144.3,26.0]
[1745355987041,12.95740831,144.32,144.28,38.89440831]
[1745355987424,0.063,144.32,144.28,38.89440831]
[1745355988345,6.99204656,144.32,144.28,38.89440831]
[1745355992242,6.99204656,144.32,144.29,12.89440831]
[1745355992540,0.063,144.32,144.29,12.89440831]
[1745356015054,0.063,144.32,144.3,12.89440831]
[1745356037081,0.063,144.32,144.29,12.89440831]
[1745356037884,0.063,144.32,144.28,26.0]
[1745356038087,0.063,144.32,144.29,12.89440831]
[1745356038771,0.063,144.32,144.28,26.0]
[1745356038964,0.063,144.32,144.29,12.89440831]
[1745356041866,0.063,144.32,144.26,1.6491]
[1745356042078,12.89440831,144.29,144.25,0.063]
[1745356042273,12.89440831,144.28,144.25,0.063]
[1745356043489,19.82633677,144.26,144.25,0.063]
[1745356045277,38.47598563,144.26,144.25,0.063]
[1745356047489,25.58157732,144.26,144.25,0.063]
[1745356047695,38.47598563,144.26,144.25,0.063]
[1745356050598,44.65858563,144.26,144.25,0.063]
[1745356052280,19.82633677,144.26,144.25,0.063]
[1745356053290,12.89440831,144.26,144.25,0.063]
[1745356053492,19.82633677,144.26,144.25,0.063]
[1745356062907,6.93048721,144.29,144.25,12.95740831]
[1745356063093,19.82489552,144.29,144.25,12.95740831]
[1745356063298,12.89440831,144.28,144.25,0.063]
[1745356065313,19.82547305,144.28,144.25,0.063]
[1745356068295,12.89440831,144.26,144.25,0.063]
[1745356068502,18.64964886,144.27,144.25,0.063]
[1745356068812,19.82547305,144.28,144.25,0.063]
[1745356073213,19.82591597,144.27,144.25,0.063]
[1745356073621,6.93150766,144.27,144.25,0.063]
[1745356074238,19.82560236,144.28,144.25,0.063]
[1745356074922,6.93119405,144.28,144.25,0.063]
[1745356075117,19.82560236,144.28,144.25,0.063]
[1745356079014,24.25513607,144.3,144.25,0.063]
[1745356079214,12.89440831,144.29,144.25,0.063]
[1745356079618,12.89440831,144.29,144.25,12.95740831]
[1745356080143,6.93096756,144.28,144.25,12.95740831]
[1745356082936,19.82504322,144.29,144.25,12.95740831]
[1745356084522,19.82504322,144.29,144.25,0.063]
[1745356084730,19.82504322,144.29,144.25,12.95740831]
[1745356089550,6.9302071,144.3,144.26,12.89440831]
[1745356089737,6.9302071,144.3,144.27,12.89440831]
[1745356092050,6.9302071,144.3,144.26,12.89440831]
[1745356092268,6.92976698,144.31,144.28,12.89440831]
[1745356092428,0.063,144.32,144.3,12.89440831]
[1745356093069,0.063,144.32,144.27,77.57763324]
[1745356093235,0.063,144.32,144.31,12.89440831]
[1745356098452,0.063,144.32,144.31,94.89440831]
[1745356098632,0.063,144.32,144.31,96.53390831]
[1745356099443,0.063,144.34,144.33,90.47204155]
[1745356099646,0.063,144.34,144.33,38.89440831]
[1745356100556,0.063,144.34,144.33,26.0]
[1745356100867,0.063,144.34,144.33,38.89440831]
[1745356103965,0.063,144.34,144.33,172.47204155]
[1745356104331,0.063,144.34,144.33,236.12181554]
[1745356104640,0.063,144.37,144.33,260.16017827]
[1745356104839,0.063,144.37,144.36,38.89440831]